[Event "KNSB Bekerfinale 2022-2023"]
[Site "Utrecht, Netherlands"]
[Date "2023.05.18"]
[Round "1.1"]
[White "Burg, Twan"]
[Black "Lombaers, Peter"]
[Result "1/2-1/2"]
[TimeControl "100 minutes + increment 10 seconds"]
[WhiteTitle "GM"]
[BlackTitle "FM"]
[WhiteFideId "1010697"]
[BlackFideId "1032852"]
[WhiteElo "2524"]
[BlackElo "2368"]

1. e4 {[%clk 01:40:16]} {[%emt 00:00:02]} c5 {[%clk 01:40:17]} {[%emt
00:00:04]} 2. Nf3 {[%clk 01:40:19]} {[%emt 00:00:08]} d6 {[%clk 01:40:22]}
{[%emt 00:00:04]} 3. Bb5+ {[%clk 01:40:14]} {[%emt 00:00:14]} Bd7 {[%clk
01:40:29]} {[%emt 00:00:04]} 4. Bxd7+ {[%clk 01:40:10]} {[%emt 00:00:15]} Nxd7
{[%emt 00:00:28]} 5. O-O {[%clk 01:38:52]} {[%emt 00:01:04]} Ngf6 {[%clk
01:40:40]} {[%emt 00:00:04]} 6. Qe2 {[%clk 01:38:39]} {[%emt 00:00:22]} e6
{[%clk 01:40:44]} {[%emt 00:00:07]} 7. b3 {[%clk 01:37:48]} {[%emt 00:01:01]}
Be7 {[%clk 01:39:12]} {[%emt 00:01:42]} 8. Bb2 {[%clk 01:36:26]} {[%emt
00:01:33]} O-O {[%clk 01:38:11]} {[%emt 00:01:11]} 9. d4 {[%clk 01:36:22]}
{[%emt 00:00:14]} cxd4 {[%clk 01:37:46]} {[%emt 00:00:34]} 10. Nxd4 {[%clk
01:36:24]} {[%emt 00:00:07]} Nc5 {[%clk 01:35:20]} {[%emt 00:02:36]} 11. Nd2
{[%clk 01:35:31]} {[%emt 00:01:03]} a6 {[%clk 01:28:14]} {[%emt 00:07:17]} 12.
c4 {[%clk 01:34:11]} {[%emt 00:01:25]} Re8 {[%clk 01:26:37]} {[%emt 00:01:52]}
13. f4 {[%clk 01:34:07]} {[%emt 00:00:13]} d5 {[%clk 01:11:40]} {[%emt
00:15:08]} 14. cxd5 {[%clk 01:33:05]} {[%emt 00:01:12]} exd5 {[%clk 01:11:18]}
{[%emt 00:00:32]} 15. e5 {[%clk 01:32:50]} {[%emt 00:00:24]} Nfe4 {[%clk
01:10:32]} {[%emt 00:00:57]} 16. N2f3 {[%clk 01:32:04]} {[%emt 00:00:56]} f6
{[%clk 00:59:03]} {[%emt 00:11:39]} 17. Rad1 {[%clk 01:22:10]} {[%emt
00:10:04]} Qb6 {[%clk 00:53:27]} {[%emt 00:05:46]} 18. Kh1 {[%clk 01:17:56]}
{[%emt 00:04:23]} fxe5 {[%clk 00:47:35]} {[%emt 00:06:03]} 19. Nxe5 {[%clk
01:17:44]} {[%emt 00:00:22]} Bf6 {[%clk 00:41:02]} {[%emt 00:06:43]} 20. Qh5
{[%clk 00:57:12]} {[%emt 00:20:39]} Bxe5 {[%clk 00:34:35]} {[%emt 00:06:39]} 21.
fxe5 {[%clk 00:57:03]} {[%emt 00:00:19]} Qg6 {[%clk 00:33:59]} {[%emt
00:00:46]} 22. Qxg6 {[%clk 00:56:24]} {[%emt 00:00:49]} hxg6 {[%clk 00:34:05]}
{[%emt 00:00:05]} 23. Kg1 {[%clk 00:52:19]} {[%emt 00:04:14]} Rad8 {[%clk
00:31:23]} {[%emt 00:02:52]} 24. Nc2 {[%clk 00:49:59]} {[%emt 00:02:30]} Ne6
{[%clk 00:27:56]} {[%emt 00:03:36]} 25. Rfe1 {[%clk 00:43:21]} {[%emt
00:06:48]} N4c5 {[%clk 00:16:31]} {[%emt 00:11:36]} 26. Rd2 {[%clk 00:39:06]}
{[%emt 00:04:25]} Ne4 {[%clk 00:15:39]} {[%emt 00:01:03]} 27. Rdd1 {[%clk
00:38:58]} {[%emt 00:00:17]} N4c5 {[%clk 00:15:39]} {[%emt 00:00:10]} 28. Bd4
{[%clk 00:35:51]} {[%emt 00:03:17]} Nxd4 {[%clk 00:14:00]} {[%emt 00:01:49]} 29.
Nxd4 {[%clk 00:34:08]} {[%emt 00:01:53]} Ne6 {[%clk 00:11:18]} {[%emt
00:02:54]} 30. Nf3 {[%clk 00:32:59]} {[%emt 00:01:18]} d4 {[%clk 00:09:52]}
{[%emt 00:01:36]} 31. Re4 {[%clk 00:29:54]} {[%emt 00:03:12]} Rd5 {[%clk
00:09:27]} {[%emt 00:00:38]} 32. Rg4 {[%clk 00:29:34]} {[%emt 00:00:30]} Kh7
{[%clk 00:04:11]} {[%emt 00:05:26]} 33. Rd3 {[%clk 00:27:58]} {[%emt 00:01:45]}
Rc8 {[%clk 00:03:15]} {[%emt 00:01:06]} 34. Re4 {[%clk 00:24:54]} {[%emt
00:03:13]} Rcd8 {[%clk 00:02:55]} {[%emt 00:00:31]} 35. Rh4+ {[%clk 00:24:39]}
{[%emt 00:00:25]} Kg8 {[%clk 00:03:04]} {[%emt 00:00:01]} 36. Rg4 {[%clk
00:24:45]} {[%emt 00:00:04]} Kh7 {[%clk 00:02:13]} {[%emt 00:01:01]} 37. Rd2
{[%clk 00:16:06]} {[%emt 00:08:48]} Rc8 {[%clk 00:01:57]} {[%emt 00:00:27]} 38.
Nxd4 {[%clk 00:09:32]} {[%emt 00:06:44]} Nxd4 {[%clk 00:02:02]} {[%emt
00:00:04]} 39. Rgxd4 {[%clk 00:09:29]} {[%emt 00:00:13]} Rxe5 {[%clk 00:02:10]}
{[%emt 00:00:02]} 40. Rd7 {[%clk 00:09:27]} {[%emt 00:00:12]} Rb5 {[%clk
00:01:13]} {[%emt 00:01:07]} 41. h3 {[%clk 00:08:24]} {[%emt 00:01:13]} g5
{[%clk 00:01:15]} {[%emt 00:00:08]} 42. Re7 {[%clk 00:08:14]} {[%emt 00:00:19]}
a5 {[%clk 00:00:30]} {[%emt 00:00:56]} 43. Rdd7 {[%clk 00:08:17]} {[%emt
00:00:07]} Rc2 {[%clk 00:00:22]} {[%emt 00:00:18]} 44. Rxg7+ {[%clk 00:08:14]}
{[%emt 00:00:13]} Kh6 {[%clk 00:00:30]} {[%emt 00:00:02]} 45. Rg8 {[%clk
00:03:06]} {[%emt 00:05:18]} Rxa2 {[%clk 00:00:28]} {[%emt 00:00:12]} 46. Rdg7
{[%clk 00:03:07]} {[%emt 00:00:08]} Rb2 {[%clk 00:00:20]} {[%emt 00:00:20]} 47.
Rg6+ {[%clk 00:02:48]} {[%emt 00:00:29]} Kh7 {[%clk 00:00:14]} {[%emt
00:00:16]} 48. Rxg5 {[%clk 00:01:37]} {[%emt 00:01:20]} R2xb3 {[%clk 00:00:23]}
49. R5g7+ {[%clk 00:01:25]} {[%emt 00:00:22]} Kh6 {[%clk 00:00:32]} {[%emt
00:00:01]} 50. Kh2 {[%clk 00:01:23]} {[%emt 00:00:12]} Rc5 {[%clk 00:00:15]}
{[%emt 00:00:27]} 51. h4 {[%clk 00:01:06]} {[%emt 00:00:26]} a4 {[%clk
00:00:16]} {[%emt 00:00:09]} 52. Rg6+ {[%clk 00:01:01]} {[%emt 00:00:16]} Kh7
{[%clk 00:00:25]} {[%emt 00:00:01]} 53. R8g7+ {[%clk 00:00:55]} {[%emt
00:00:16]} Kh8 {[%clk 00:00:34]} 54. Rd7 {[%clk 00:00:39]} {[%emt 00:00:25]} a3
{[%clk 00:00:34]} {[%emt 00:00:10]} 55. Re6 {[%clk 00:00:43]} {[%emt 00:00:06]}
Rc8 {[%clk 00:00:37]} {[%emt 00:00:08]} 56. Ree7 {[%clk 00:00:32]} {[%emt
00:00:21]} a2 {[%clk 00:00:41]} {[%emt 00:00:05]} 57. Rh7+ {[%clk 00:00:35]}
{[%emt 00:00:06]} Kg8 {[%clk 00:00:50]} {[%emt 00:00:01]} 58. Rhg7+ {[%emt
00:00:02]} 1/2-1/2

[Event "KNSB Bekerfinale 2022-2023"]
[Site "Utrecht, Netherlands"]
[Date "2023.05.18"]
[Round "1.2"]
[White "ten Hertog, Hugo"]
[Black "Fridman, Daniel"]
[Result "1/2-1/2"]
[TimeControl "100 minutes + increment 10 seconds"]
[WhiteTitle "GM"]
[BlackTitle "GM"]
[WhiteFideId "1026356"]
[BlackFideId "11600454"]
[WhiteElo "2526"]
[BlackElo "2574"]

1. c4 {[%clk 01:40:16]} {[%emt 00:00:03]} e6 {[%clk 01:36:53]} {[%emt
00:03:27]} 2. Nf3 {[%clk 01:39:38]} {[%emt 00:00:48]} d5 {[%clk 01:36:55]}
{[%emt 00:00:08]} 3. e3 {[%clk 01:39:36]} {[%emt 00:00:13]} Nf6 {[%clk
01:35:29]} {[%emt 00:01:36]} 4. b3 {[%clk 01:39:39]} {[%emt 00:00:06]} Bd6
{[%clk 01:35:04]} {[%emt 00:00:34]} 5. Bb2 {[%clk 01:37:36]} {[%emt 00:02:14]}
O-O {[%clk 01:35:06]} {[%emt 00:00:08]} 6. Nc3 {[%clk 01:37:28]} {[%emt
00:00:18]} a6 {[%clk 01:30:04]} {[%emt 00:05:12]} 7. d4 {[%clk 01:21:57]}
{[%emt 00:15:42]} b6 {[%clk 01:24:59]} {[%emt 00:05:15]} 8. Bd3 {[%clk
01:15:42]} {[%emt 00:06:24]} Bb7 {[%clk 01:23:48]} {[%emt 00:01:20]} 9. O-O
{[%clk 01:06:53]} {[%emt 00:09:00]} Nbd7 {[%clk 01:23:36]} {[%emt 00:00:21]} 10.
cxd5 {[%clk 00:52:39]} {[%emt 00:14:25]} exd5 {[%clk 01:23:09]} {[%emt
00:00:37]} 11. Rc1 {[%clk 00:52:22]} {[%emt 00:00:26]} Qe7 {[%clk 01:20:21]}
{[%emt 00:02:58]} 12. Ne2 {[%clk 00:35:43]} {[%emt 00:16:49]} Ne4 {[%clk
01:18:22]} {[%emt 00:02:09]} 13. Rc2 {[%clk 00:35:12]} {[%emt 00:00:42]} f5
{[%clk 01:11:39]} {[%emt 00:06:53]} 14. Qa1 {[%clk 00:31:30]} {[%emt 00:03:52]}
Rae8 {[%clk 01:07:13]} {[%emt 00:04:34]} 15. Ne5 {[%clk 00:28:35]} {[%emt
00:03:05]} Bxe5 {[%clk 01:04:01]} {[%emt 00:03:23]} 16. dxe5 {[%clk 00:28:41]}
{[%emt 00:00:04]} Nec5 {[%clk 01:04:04]} {[%emt 00:00:07]} 17. Nf4 {[%clk
00:15:47]} {[%emt 00:13:04]} g5 {[%clk 00:56:24]} {[%emt 00:07:50]} 18. Nh5
{[%clk 00:15:18]} {[%emt 00:00:39]} Nxd3 {[%clk 00:50:24]} {[%emt 00:06:10]} 19.
Rxc7 {[%clk 00:15:18]} {[%emt 00:00:11]} Bc8 {[%clk 00:50:15]} {[%emt
00:00:19]} 20. Nf6+ {[%clk 00:12:40]} {[%emt 00:02:48]} Rxf6 {[%clk 00:49:41]}
{[%emt 00:00:43]} 21. exf6 {[%clk 00:12:44]} {[%emt 00:00:07]} Qd6 {[%clk
00:47:52]} {[%emt 00:01:58]} 22. Rfc1 {[%clk 00:12:17]} {[%emt 00:00:38]} N3c5
{[%clk 00:45:52]} {[%emt 00:02:10]} 23. Rxc8 {[%clk 00:05:56]} {[%emt
00:06:31]} Rxc8 {[%clk 00:45:27]} {[%emt 00:00:35]} 24. b4 {[%clk 00:06:02]}
{[%emt 00:00:04]} Rf8 {[%clk 00:39:19]} {[%emt 00:06:18]} 25. bxc5 {[%clk
00:06:08]} {[%emt 00:00:05]} bxc5 {[%clk 00:39:24]} {[%emt 00:00:05]} 26. h4
{[%clk 00:05:46]} {[%emt 00:00:31]} gxh4 {[%clk 00:36:46]} {[%emt 00:02:48]} 27.
Qb1 {[%clk 00:03:37]} {[%emt 00:02:20]} Nxf6 {[%clk 00:33:49]} {[%emt
00:03:07]} 28. Qxf5 {[%clk 00:03:43]} {[%emt 00:00:03]} Ne4 {[%clk 00:33:41]}
{[%emt 00:00:18]} 29. Qg4+ {[%clk 00:03:19]} {[%emt 00:00:34]} Qg6 {[%clk
00:33:11]} {[%emt 00:00:40]} 30. Qxg6+ {[%clk 00:03:00]} {[%emt 00:00:30]} hxg6
{[%clk 00:33:14]} {[%emt 00:00:06]} 31. f3 {[%clk 00:03:09]} {[%emt 00:00:02]}
Ng3 {[%clk 00:31:48]} {[%emt 00:01:36]} 32. Rxc5 {[%clk 00:03:16]} {[%emt
00:00:03]} Rb8 {[%clk 00:31:44]} {[%emt 00:00:14]} 33. Rc2 {[%clk 00:02:54]}
{[%emt 00:00:32]} Kf7 {[%clk 00:29:11]} {[%emt 00:02:43]} 34. Kf2 {[%clk
00:02:59]} {[%emt 00:00:05]} Ke6 {[%clk 00:29:06]} {[%emt 00:00:16]} 35. Rc6+
{[%clk 00:02:05]} {[%emt 00:01:03]} Kd7 {[%clk 00:28:11]} {[%emt 00:01:05]} 36.
Rc2 {[%clk 00:02:11]} {[%emt 00:00:04]} Ke6 {[%clk 00:27:22]} {[%emt 00:00:59]}
37. Ke1 {[%clk 00:01:08]} {[%emt 00:01:13]} Nf5 {[%clk 00:27:08]} {[%emt
00:00:23]} 38. Kd2 {[%clk 00:01:07]} {[%emt 00:00:12]} Nd6 {[%clk 00:26:55]}
{[%emt 00:00:23]} 39. Kd3 {[%clk 00:00:32]} {[%emt 00:00:46]} Nc4 {[%clk
00:26:57]} {[%emt 00:00:08]} 40. Bd4 {[%clk 00:00:38]} {[%emt 00:00:03]} Rb1
{[%clk 00:25:55]} {[%emt 00:01:12]} 41. Re2 {[%clk 00:00:29]} {[%emt 00:00:20]}
a5 {[%clk 00:24:05]} {[%emt 00:02:00]} 42. Bc3 {[%clk 00:00:21]} {[%emt
00:00:17]} Rd1+ {[%clk 00:19:23]} {[%emt 00:04:51]} 43. Kc2 {[%clk 00:00:28]}
{[%emt 00:00:03]} Rg1 {[%clk 00:19:26]} {[%emt 00:00:08]} 44. Bd4 {[%clk
00:00:36]} {[%emt 00:00:02]} a4 {[%clk 00:18:39]} {[%emt 00:00:57]} 45. e4
{[%clk 00:00:31]} {[%emt 00:00:15]} Na3+ {[%clk 00:17:37]} {[%emt 00:01:13]} 46.
Kb2 {[%clk 00:00:25]} {[%emt 00:00:17]} Nc4+ {[%clk 00:17:32]} {[%emt
00:00:15]} 47. Kc3 {[%clk 00:00:20]} {[%emt 00:00:15]} Rc1+ {[%clk 00:17:19]}
{[%emt 00:00:22]} 48. Kb4 {[%clk 00:00:23]} {[%emt 00:00:07]} a3 {[%clk
00:15:02]} {[%emt 00:02:29]} 49. Bc3 {[%clk 00:00:14]} {[%emt 00:00:19]} Kd6
{[%clk 00:11:14]} {[%emt 00:03:58]} 50. exd5 {[%clk 00:00:20]} {[%emt
00:00:04]} Kxd5 {[%clk 00:11:13]} {[%emt 00:00:11]} 51. Re1 {[%clk 00:00:18]}
{[%emt 00:00:12]} Rxe1 {[%clk 00:11:02]} {[%emt 00:00:21]} 52. Bxe1 {[%clk
00:00:27]} {[%emt 00:00:01]} Ne3 {[%clk 00:08:44]} {[%emt 00:02:28]} 53. Bxh4
{[%clk 00:00:33]} {[%emt 00:00:04]} Nxg2 {[%clk 00:08:49]} {[%emt 00:00:05]} 54.
Bf2 {[%clk 00:00:22]} {[%emt 00:00:20]} g5 {[%clk 00:07:35]} {[%emt 00:01:24]}
55. Kxa3 {[%clk 00:00:17]} {[%emt 00:00:15]} Nh4 {[%clk 00:07:10]} {[%emt
00:00:34]} 56. f4 {[%clk 00:00:13]} {[%emt 00:00:15]} gxf4 {[%clk 00:07:14]}
{[%emt 00:00:06]} 57. Bxh4 {[%emt 00:00:02]} Ke5 {[%emt 00:00:03]} 1/2-1/2

[Event "KNSB Bekerfinale 2022-2023"]
[Site "Utrecht, Netherlands"]
[Date "2023.05.18"]
[Round "1.3"]
[White "Pavlidis, Antonios"]
[Black "Kerigan, Demre"]
[Result "1-0"]
[TimeControl "100 minutes + increment 10 seconds"]
[WhiteTitle "GM"]
[BlackTitle "IM"]
[WhiteFideId "4212312"]
[BlackFideId "6307841"]
[WhiteElo "2559"]
[BlackElo "2357"]

1. e4 {[%clk 01:40:17]} {[%emt 00:00:02]} d6 {[%clk 01:39:38]} {[%emt
00:00:42]} 2. d4 {[%clk 01:40:20]} {[%emt 00:00:07]} Nf6 {[%clk 01:39:38]}
{[%emt 00:00:11]} 3. Nc3 {[%clk 01:40:21]} {[%emt 00:00:09]} g6 {[%clk
01:39:31]} {[%emt 00:00:17]} 4. g3 {[%clk 01:38:47]} {[%emt 00:01:44]} Bg7
{[%clk 01:39:26]} {[%emt 00:00:15]} 5. Bg2 {[%clk 01:38:51]} {[%emt 00:00:06]}
O-O {[%clk 01:38:53]} {[%emt 00:00:43]} 6. Nge2 {[%clk 01:38:56]} {[%emt
00:00:04]} e5 {[%clk 01:38:54]} {[%emt 00:00:09]} 7. O-O {[%clk 01:38:32]}
{[%emt 00:00:35]} c6 {[%clk 01:38:32]} {[%emt 00:00:32]} 8. a4 {[%clk
01:38:28]} {[%emt 00:00:13]} a5 {[%clk 01:38:06]} {[%emt 00:00:36]} 9. h3
{[%clk 01:38:11]} {[%emt 00:00:27]} Na6 {[%clk 01:36:07]} {[%emt 00:02:09]} 10.
Be3 {[%clk 01:36:47]} {[%emt 00:01:34]} Nb4 {[%clk 01:29:49]} {[%emt 00:06:28]}
11. Qd2 {[%clk 01:34:32]} {[%emt 00:02:25]} Re8 {[%clk 01:26:36]} {[%emt
00:03:23]} 12. Rad1 {[%clk 01:31:18]} {[%emt 00:03:25]} Be6 {[%clk 01:22:14]}
{[%emt 00:04:32]} 13. f4 {[%clk 01:23:57]} {[%emt 00:07:31]} exd4 {[%clk
01:13:56]} {[%emt 00:08:27]} 14. Nxd4 {[%clk 01:21:16]} {[%emt 00:02:52]} Bc4
{[%clk 01:12:46]} {[%emt 00:01:21]} 15. Rfe1 {[%clk 01:21:19]} {[%emt
00:00:06]} Qc7 {[%clk 01:06:37]} {[%emt 00:06:20]} 16. Qf2 {[%clk 01:17:55]}
{[%emt 00:03:35]} d5 {[%clk 01:04:36]} {[%emt 00:02:10]} 17. e5 {[%clk
01:11:57]} {[%emt 00:06:09]} Nd7 {[%clk 00:59:58]} {[%emt 00:04:48]} 18. b3
{[%clk 01:01:02]} {[%emt 00:11:05]} Ba6 {[%clk 01:00:03]} {[%emt 00:00:04]} 19.
Ncb5 {[%clk 01:00:03]} {[%emt 00:01:10]} Bxb5 {[%clk 00:46:59]} {[%emt
00:13:14]} 20. axb5 {[%clk 00:59:57]} {[%emt 00:00:17]} c5 {[%clk 00:41:43]}
{[%emt 00:05:26]} 21. c3 {[%clk 00:58:04]} {[%emt 00:02:03]} cxd4 {[%clk
00:40:47]} {[%emt 00:01:06]} 22. Bxd4 {[%clk 00:58:08]} {[%emt 00:00:06]} Nc6
{[%clk 00:35:19]} {[%emt 00:05:37]} 23. bxc6 {[%clk 00:57:18]} {[%emt
00:01:01]} bxc6 {[%clk 00:35:23]} {[%emt 00:00:06]} 24. c4 {[%clk 00:53:59]}
{[%emt 00:03:29]} dxc4 {[%clk 00:29:55]} {[%emt 00:05:38]} 25. bxc4 {[%clk
00:54:05]} {[%emt 00:00:04]} Rab8 {[%clk 00:27:29]} {[%emt 00:02:35]} 26. Kh1
{[%clk 00:38:42]} {[%emt 00:15:34]} Rb4 {[%clk 00:20:44]} {[%emt 00:06:54]} 27.
Qa2 {[%clk 00:36:02]} {[%emt 00:02:51]} a4 {[%clk 00:18:14]} {[%emt 00:02:41]}
28. Bc3 {[%clk 00:29:12]} {[%emt 00:07:00]} Rb3 {[%clk 00:18:15]} {[%emt
00:00:09]} 29. Qxa4 {[%clk 00:29:17]} {[%emt 00:00:05]} Nc5 {[%clk 00:10:06]}
{[%emt 00:08:19]} 30. Qa1 {[%clk 00:27:45]} {[%emt 00:01:42]} Bf8 {[%clk
00:10:08]} {[%emt 00:00:08]} 31. Kh2 {[%clk 00:23:00]} {[%emt 00:04:56]} Qb7
{[%clk 00:08:47]} {[%emt 00:01:31]} 32. Rb1 {[%clk 00:14:03]} {[%emt 00:09:07]}
Rb8 {[%clk 00:08:11]} {[%emt 00:00:46]} 33. Rxb3 {[%clk 00:13:25]} {[%emt
00:00:48]} Qxb3 {[%clk 00:08:13]} {[%emt 00:00:07]} 34. e6 {[%clk 00:11:33]}
{[%emt 00:02:03]} Nxe6 {[%clk 00:06:17]} {[%emt 00:02:07]} 35. Rxe6 {[%clk
00:10:02]} {[%emt 00:01:41]} fxe6 {[%clk 00:06:17]} {[%emt 00:00:10]} 36. Qe1
{[%clk 00:10:09]} {[%emt 00:00:02]} Kf7 {[%clk 00:03:44]} {[%emt 00:02:43]} 37.
Qe5 {[%clk 00:10:15]} {[%emt 00:00:04]} Qxc4 {[%clk 00:02:49]} {[%emt
00:01:05]} 38. Qxb8 {[%clk 00:02:00]} {[%emt 00:08:25]} Qxc3 {[%clk 00:02:54]}
{[%emt 00:00:05]} 39. Qb7+ {[%clk 00:01:59]} {[%emt 00:00:09]} Be7 {[%clk
00:02:42]} {[%emt 00:00:23]} 40. Bxc6 {[%clk 00:01:48]} {[%emt 00:00:21]} Qb4
{[%clk 00:02:01]} {[%emt 00:00:51]} 41. Qd7 {[%clk 00:01:32]} {[%emt 00:00:26]}
Qb2+ {[%clk 00:01:39]} {[%emt 00:00:33]} 42. Bg2 {[%clk 00:01:28]} {[%emt
00:00:14]} Qc3 {[%clk 00:01:35]} {[%emt 00:00:14]} 43. h4 {[%clk 00:01:20]}
{[%emt 00:00:18]} Qe3 {[%clk 00:01:37]} {[%emt 00:00:08]} 44. Qb7 {[%clk
00:00:57]} {[%emt 00:00:33]} Kf8 {[%clk 00:01:29]} {[%emt 00:00:18]} 45. Qc8+
{[%clk 00:00:58]} {[%emt 00:00:08]} Kf7 {[%clk 00:01:37]} {[%emt 00:00:02]} 46.
Qh8 {[%clk 00:00:51]} {[%emt 00:00:17]} h5 {[%clk 00:01:09]} {[%emt 00:00:38]}
47. Qh7+ {[%clk 00:00:58]} {[%emt 00:00:02]} Kf6 {[%clk 00:01:01]} {[%emt
00:00:18]} 48. Qg8 {[%clk 00:01:07]} {[%emt 00:00:02]} Qe1 {[%clk 00:00:37]}
{[%emt 00:00:34]} 49. Kh3 {[%clk 00:01:01]} {[%emt 00:00:15]} Qe3 {[%clk
00:00:39]} {[%emt 00:00:08]} 50. Bc6 {[%clk 00:00:57]} {[%emt 00:00:13]} e5
{[%clk 00:00:12]} {[%emt 00:00:38]} 51. Be8 {[%clk 00:00:41]} {[%emt 00:00:26]}
exf4 {[%clk 00:00:14]} {[%emt 00:00:09]} 52. Qf7+ {[%clk 00:00:50]} {[%emt
00:00:01]} Ke5 {[%clk 00:00:14]} {[%emt 00:00:10]} 53. Qxe7+ {[%clk 00:00:58]}
{[%emt 00:00:02]} Kd4 {[%clk 00:00:23]} {[%emt 00:00:01]} 54. Qb4+ {[%clk
00:00:39]} {[%emt 00:00:28]} Ke5 {[%clk 00:00:19]} {[%emt 00:00:14]} 55. Qe7+
{[%clk 00:00:33]} {[%emt 00:00:15]} Kd4 {[%clk 00:00:28]} {[%emt 00:00:02]} 56.
Qd6+ {[%clk 00:00:25]} {[%emt 00:00:18]} Kc3 {[%clk 00:00:27]} {[%emt
00:00:12]} 57. Qc6+ {[%clk 00:00:12]} {[%emt 00:00:22]} Kd4 {[%clk 00:00:26]}
{[%emt 00:00:12]} 58. Qb6+ {[%clk 00:00:16]} {[%emt 00:00:05]} Ke5 {[%clk
00:00:31]} {[%emt 00:00:05]} 59. Qxe3+ {[%clk 00:00:18]} {[%emt 00:00:08]} fxe3
{[%clk 00:00:39]} {[%emt 00:00:02]} 60. Kg2 {[%clk 00:00:26]} {[%emt 00:00:02]}
Kf5 {[%clk 00:00:15]} {[%emt 00:00:34]} 61. Kf3 {[%clk 00:00:27]} {[%emt
00:00:09]} g5 {[%clk 00:00:13]} {[%emt 00:00:13]} 62. Bd7+ {[%clk 00:00:35]}
Kf6 {[%clk 00:00:20]} {[%emt 00:00:02]} 63. hxg5+ {[%clk 00:00:44]} {[%emt
00:00:01]} Kxg5 {[%clk 00:00:29]} {[%emt 00:00:02]} 64. Bh3 {[%clk 00:00:53]}
1-0

[Event "KNSB Bekerfinale 2022-2023"]
[Site "Utrecht, Netherlands"]
[Date "2023.05.18"]
[Round "1.4"]
[White "Wemmers, Xander"]
[Black "Bosch, Jeroen"]
[Result "1/2-1/2"]
[TimeControl "100 minutes + increment 10 seconds"]
[WhiteTitle "IM"]
[BlackTitle "IM"]
[WhiteFideId "1004182"]
[BlackFideId "1001280"]
[WhiteElo "2350"]
[BlackElo "2419"]

1. d4 {[%clk 01:40:16]} {[%emt 00:00:03]} Nf6 {[%clk 01:40:07]} {[%emt
00:00:13]} 2. c4 {[%clk 01:40:14]} {[%emt 00:00:12]} d6 {[%clk 01:39:59]}
{[%emt 00:00:18]} 3. Nc3 {[%clk 01:39:07]} {[%emt 00:01:17]} Nbd7 {[%clk
01:39:52]} {[%emt 00:00:18]} 4. e4 {[%clk 01:38:24]} {[%emt 00:00:53]} e5
{[%clk 01:39:06]} {[%emt 00:00:57]} 5. Nf3 {[%clk 01:38:13]} {[%emt 00:00:21]}
Be7 {[%clk 01:39:08]} {[%emt 00:00:08]} 6. Be2 {[%clk 01:37:47]} {[%emt
00:00:36]} c6 {[%clk 01:38:50]} {[%emt 00:00:28]} 7. Rb1 {[%clk 01:35:34]}
{[%emt 00:02:23]} O-O {[%clk 01:34:59]} {[%emt 00:04:00]} 8. O-O {[%clk
01:35:07]} {[%emt 00:00:37]} a5 {[%clk 01:23:59]} {[%emt 00:11:11]} 9. Qc2
{[%clk 01:28:00]} {[%emt 00:07:15]} Qc7 {[%clk 01:23:51]} {[%emt 00:00:19]} 10.
b3 {[%clk 01:20:52]} {[%emt 00:07:19]} Re8 {[%clk 01:22:45]} {[%emt 00:01:15]}
11. a3 {[%clk 01:15:01]} {[%emt 00:06:02]} Bf8 {[%clk 01:01:36]} {[%emt
00:21:19]} 12. b4 {[%clk 01:11:37]} {[%emt 00:03:34]} axb4 {[%clk 01:01:31]}
{[%emt 00:00:15]} 13. axb4 {[%clk 01:11:40]} {[%emt 00:00:07]} g6 {[%clk
00:41:10]} {[%emt 00:20:31]} 14. h3 {[%clk 01:07:01]} {[%emt 00:04:48]} exd4
{[%clk 00:38:24]} {[%emt 00:02:56]} 15. Nxd4 {[%clk 01:05:55]} {[%emt
00:01:16]} Bg7 {[%clk 00:38:30]} {[%emt 00:00:04]} 16. Rd1 {[%clk 01:04:40]}
{[%emt 00:01:25]} h6 {[%clk 00:36:10]} {[%emt 00:02:31]} 17. Bf4 {[%clk
00:58:21]} {[%emt 00:06:28]} Ne5 {[%clk 00:36:03]} {[%emt 00:00:17]} 18. Bg3
{[%clk 00:56:39]} {[%emt 00:01:53]} Qe7 {[%clk 00:33:01]} {[%emt 00:03:12]} 19.
f4 {[%clk 00:49:46]} {[%emt 00:07:03]} Ned7 {[%clk 00:32:12]} {[%emt 00:00:59]}
20. Bf3 {[%clk 00:49:34]} {[%emt 00:00:22]} Nb6 {[%clk 00:31:22]} {[%emt
00:01:01]} 21. Qd3 {[%clk 00:44:22]} {[%emt 00:05:22]} Ra3 {[%clk 00:16:59]}
{[%emt 00:14:32]} 22. Rb3 {[%clk 00:41:14]} {[%emt 00:03:18]} Rxb3 {[%clk
00:16:28]} {[%emt 00:00:42]} 23. Nxb3 {[%clk 00:41:13]} {[%emt 00:00:10]} Nxc4
{[%clk 00:16:00]} {[%emt 00:00:39]} 24. Qxc4 {[%clk 00:33:53]} {[%emt
00:07:29]} Be6 {[%clk 00:16:06]} {[%emt 00:00:04]} 25. Nd5 {[%clk 00:33:41]}
{[%emt 00:00:22]} cxd5 {[%clk 00:16:12]} {[%emt 00:00:04]} 26. exd5 {[%clk
00:33:44]} {[%emt 00:00:07]} Bd7 {[%clk 00:14:38]} {[%emt 00:01:44]} 27. Re1
{[%clk 00:32:30]} {[%emt 00:01:23]} Qd8 {[%clk 00:14:44]} {[%emt 00:00:05]} 28.
Rxe8+ {[%clk 00:32:27]} {[%emt 00:00:13]} Nxe8 {[%clk 00:14:35]} {[%emt
00:00:18]} 29. Bf2 {[%clk 00:31:19]} {[%emt 00:01:18]} Qc7 {[%clk 00:13:47]}
{[%emt 00:00:59]} 30. Qxc7 {[%clk 00:27:14]} {[%emt 00:04:15]} Nxc7 {[%clk
00:13:55]} 31. Na5 {[%clk 00:27:07]} {[%emt 00:00:17]} Bc3 {[%clk 00:13:27]}
{[%emt 00:00:38]} 32. Nxb7 {[%clk 00:25:26]} {[%emt 00:01:51]} Bxb4 {[%clk
00:13:32]} {[%emt 00:00:04]} 33. Bb6 {[%clk 00:19:02]} {[%emt 00:06:34]} Nb5
{[%clk 00:11:27]} {[%emt 00:02:15]} 34. Kf2 {[%clk 00:17:12]} {[%emt 00:01:59]}
1/2-1/2